[Event "Titled Tuesday Blitz March 28 Late 2023"]
[White "Skvortsov, Andrei"]
[Black "Wu, Sibo"]
[WhiteFideId "24108600"]
[BlackFideId "8606048"]
[WhiteElo "2259"]
[BlackElo "2300"]
[Result "1-0"]
[Round "11"]
[TimeControl "180+2"]
[Date "2023.03.28"]
[WhiteClock "0:00:50"]
[BlackClock "0:00:10"]

1. g3 {[%clk 0:02:59]}  d5 {[%clk 0:03:00]} 2. Bg2 {[%clk 0:03:00]}  Nf6 {[%clk 0:03:00]} 3. c4 {[%clk 0:03:00]}  c6 {[%clk 0:02:59]} 4. cxd5 {[%clk 0:02:57]}  cxd5 {[%clk 0:02:59]} 5. Nf3 {[%clk 0:02:57]}  Nc6 {[%clk 0:03:00]} 6. d4 {[%clk 0:02:55]}  h5 {[%clk 0:02:52]} 7. O-O {[%clk 0:02:55]}  Bf5 {[%clk 0:02:46]} 8. Nc3 {[%clk 0:02:51]}  e6 {[%clk 0:02:45]} 9. Bg5 {[%clk 0:02:46]}  Be7 {[%clk 0:02:45]} 10. h4 {[%clk 0:02:39]}  Ne4 {[%clk 0:02:34]} 11. Nxe4 {[%clk 0:02:35]}  dxe4 {[%clk 0:02:23]} 12. Bxe7 {[%clk 0:02:35]}  Kxe7 {[%clk 0:02:23]} 13. Ng5 {[%clk 0:02:35]}  Qxd4 {[%clk 0:02:20]} 14. Nxe4 {[%clk 0:02:33]}  Bxe4 {[%clk 0:02:15]} 15. Qxd4 {[%clk 0:02:32]}  Nxd4 {[%clk 0:02:14]} 16. Bxe4 {[%clk 0:02:33]}  Nxe2+ {[%clk 0:02:15]} 17. Kg2 {[%clk 0:02:30]}  f5 {[%clk 0:02:07]} 18. Rfe1 {[%clk 0:02:19]}  Nd4 {[%clk 0:01:55]} 19. Rad1 {[%clk 0:02:17]}  Rhd8 {[%clk 0:01:51]} 20. Bd3 {[%clk 0:02:11]}  Rac8 {[%clk 0:01:48]} 21. Re3 {[%clk 0:02:05]}  Kf6 {[%clk 0:01:39]} 22. Rde1 {[%clk 0:02:02]}  a6 {[%clk 0:01:37]} 23. Bb1 {[%clk 0:01:55]}  b5 {[%clk 0:01:30]} 24. Ra3 {[%clk 0:01:53]}  Rc6 {[%clk 0:01:26]} 25. Rd1 {[%clk 0:01:52]}  e5 {[%clk 0:01:24]} 26. Bd3 {[%clk 0:01:40]}  Rdc8 {[%clk 0:01:12]} 27. Rd2 {[%clk 0:01:38]}  e4 {[%clk 0:01:09]} 28. Bxe4 {[%clk 0:01:34]}  fxe4 {[%clk 0:01:06]} 29. Rxd4 {[%clk 0:01:34]}  Kf5 {[%clk 0:01:03]} 30. Rd5+ {[%clk 0:01:34]}  Kf6 {[%clk 0:01:01]} 31. Rxh5 {[%clk 0:01:31]}  Rd8 {[%clk 0:01:00]} 32. Rg5 {[%clk 0:01:24]}  Rd2 {[%clk 0:00:58]} 33. Rg4 {[%clk 0:01:24]}  Re6 {[%clk 0:00:54]} 34. Rf4+ {[%clk 0:01:23]}  Ke7 {[%clk 0:00:55]} 35. Re3 {[%clk 0:01:09]}  Rxb2 {[%clk 0:00:55]} 36. Rfxe4 {[%clk 0:01:07]}  Rxe4 {[%clk 0:00:55]} 37. Rxe4+ {[%clk 0:01:08]}  Kf6 {[%clk 0:00:54]} 38. a3 {[%clk 0:01:03]}  Rb3 {[%clk 0:00:50]} 39. a4 {[%clk 0:01:03]}  b4 {[%clk 0:00:50]} 40. Rf4+ {[%clk 0:01:02]}  Kg6 {[%clk 0:00:44]} 41. Rc4 {[%clk 0:01:01]}  Rb1 {[%clk 0:00:37]} 42. Rc6+ {[%clk 0:01:00]}  Kf5 {[%clk 0:00:37]} 43. Rxa6 {[%clk 0:01:00]}  b3 {[%clk 0:00:38]} 44. f3 {[%clk 0:00:53]}  Rc1 {[%clk 0:00:29]} 45. Rb6 {[%clk 0:00:53]}  Rc2+ {[%clk 0:00:29]} 46. Kh3 {[%clk 0:00:53]}  b2 {[%clk 0:00:28]} 47. a5 {[%clk 0:00:53]}  g5 {[%clk 0:00:19]} 48. hxg5 {[%clk 0:00:52]}  Kxg5 {[%clk 0:00:20]} 49. a6 {[%clk 0:00:52]}  Rd2 {[%clk 0:00:10]} 50. a7 {[%clk 0:00:50]} 1-0


[Site "https://www.chess.com"]

[Event "Titled Tuesday Blitz March 28 Late 2023"]
[White "Sarkar, Justin"]
[Black "Hoffmann, Asa"]
[WhiteFideId "2010011"]
[BlackFideId "2001470"]
[WhiteElo "2189"]
[BlackElo "2117"]
[Result "0-1"]
[Round "11"]
[TimeControl "180+2"]
[Date "2023.03.28"]
[WhiteClock "0:00:03"]
[BlackClock "0:00:26"]

1. d4 {[%clk 0:02:58]}  Nf6 {[%clk 0:02:59]} 2. Nf3 {[%clk 0:02:57]}  d6 {[%clk 0:02:55]} 3. c4 {[%clk 0:02:52]}  c6 {[%clk 0:02:55]} 4. Nc3 {[%clk 0:02:50]}  Bg4 {[%clk 0:02:54]} 5. e4 {[%clk 0:02:43]}  Nbd7 {[%clk 0:02:53]} 6. h3 {[%clk 0:02:39]}  Bh5 {[%clk 0:02:53]} 7. Be2 {[%clk 0:02:33]}  e5 {[%clk 0:02:53]} 8. O-O {[%clk 0:02:32]}  Be7 {[%clk 0:02:52]} 9. Be3 {[%clk 0:02:28]}  O-O {[%clk 0:02:51]} 10. d5 {[%clk 0:02:26]}  c5 {[%clk 0:02:51]} 11. Nd2 {[%clk 0:02:05]}  Bg6 {[%clk 0:02:50]} 12. a3 {[%clk 0:01:59]}  Ne8 {[%clk 0:02:49]} 13. b4 {[%clk 0:01:57]}  Bg5 {[%clk 0:02:48]} 14. Bxg5 {[%clk 0:01:48]}  Qxg5 {[%clk 0:02:43]} 15. Nb3 {[%clk 0:01:39]}  b6 {[%clk 0:02:43]} 16. Qc1 {[%clk 0:01:31]}  Qh4 {[%clk 0:02:36]} 17. Qe3 {[%clk 0:01:27]}  f5 {[%clk 0:02:36]} 18. exf5 {[%clk 0:01:25]}  Bxf5 {[%clk 0:02:34]} 19. Nd2 {[%clk 0:01:18]}  Qd4 {[%clk 0:02:26]} 20. Nb5 {[%clk 0:01:03]}  Qxe3 {[%clk 0:02:22]} 21. fxe3 {[%clk 0:01:03]}  a6 {[%clk 0:02:21]} 22. Nc3 {[%clk 0:01:02]}  Bg6 {[%clk 0:02:18]} 23. Bg4 {[%clk 0:00:56]}  Nef6 {[%clk 0:02:17]} 24. Be6+ {[%clk 0:00:53]}  Kh8 {[%clk 0:02:17]} 25. Rf2 {[%clk 0:00:42]}  Rad8 {[%clk 0:02:09]} 26. Raf1 {[%clk 0:00:39]}  Rfe8 {[%clk 0:02:08]} 27. g4 {[%clk 0:00:23]}  Nf8 {[%clk 0:02:04]} 28. Bf5 {[%clk 0:00:16]}  Bxf5 {[%clk 0:02:00]} 29. Rxf5 {[%clk 0:00:16]}  Ng6 {[%clk 0:01:59]} 30. g5 {[%clk 0:00:12]}  Nd7 {[%clk 0:01:44]} 31. Nde4 {[%clk 0:00:11]}  Ndf8 {[%clk 0:01:34]} 32. Rf7 {[%clk 0:00:10]}  Kg8 {[%clk 0:01:34]} 33. Rb7 {[%clk 0:00:10]}  cxb4 {[%clk 0:01:26]} 34. axb4 {[%clk 0:00:09]}  a5 {[%clk 0:01:26]} 35. Rff7 {[%clk 0:00:06]}  axb4 {[%clk 0:01:22]} 36. Rxg7+ {[%clk 0:00:06]}  Kh8 {[%clk 0:01:22]} 37. Nf6 {[%clk 0:00:04]}  Nd7 {[%clk 0:00:58]} 38. Rgxd7 {[%clk 0:00:03]}  Rxd7 {[%clk 0:00:55]} 39. Rxd7 {[%clk 0:00:03]}  Nf8 {[%clk 0:00:54]} 40. Rxd6 {[%clk 0:00:03]}  bxc3 {[%clk 0:00:54]} 41. Rc6 {[%clk 0:00:01]}  c2 {[%clk 0:00:51]} 42. Nxe8 {[%clk 0:00:01]}  c1=Q+ {[%clk 0:00:50]} 43. Kf2 {[%clk 0:00:02]}  Qd2+ {[%clk 0:00:48]} 44. Kf3 {[%clk 0:00:02]}  Qd1+ {[%clk 0:00:42]} 45. Ke4 {[%clk 0:00:02]}  Qh1+ {[%clk 0:00:42]} 46. Kxe5 {[%clk 0:00:02]}  Qxh3 {[%clk 0:00:38]} 47. Nf6 {[%clk 0:00:02]}  Qg3+ {[%clk 0:00:35]} 48. Kd4 {[%clk 0:00:02]}  Qxg5 {[%clk 0:00:32]} 49. e4 {[%clk 0:00:03]}  h5 {[%clk 0:00:29]} 50. e5 {[%clk 0:00:03]}  Qf4+ {[%clk 0:00:26]} 0-1


[Site "https://www.chess.com"]

[Event "Titled Tuesday Blitz March 28 Late 2023"]
[White "Kozin, Yuri"]
[Black "sebastianmarinp"]
[WhiteFideId "4129920"]
[WhiteElo "2415"]
[BlackElo "2304"]
[Result "1-0"]
[Round "11"]
[TimeControl "180+2"]
[Date "2023.03.28"]
[WhiteClock "0:01:02"]
[BlackClock "0:00:23"]

1. e4 {[%clk 0:02:59]}  e5 {[%clk 0:03:00]} 2. Nf3 {[%clk 0:02:59]}  Nc6 {[%clk 0:03:00]} 3. Bb5 {[%clk 0:03:00]}  a6 {[%clk 0:03:00]} 4. Ba4 {[%clk 0:03:00]}  Nf6 {[%clk 0:03:00]} 5. O-O {[%clk 0:03:01]}  b5 {[%clk 0:03:00]} 6. Bb3 {[%clk 0:03:01]}  Bb7 {[%clk 0:03:00]} 7. d3 {[%clk 0:02:58]}  Be7 {[%clk 0:02:57]} 8. a4 {[%clk 0:02:58]}  O-O {[%clk 0:02:57]} 9. Nc3 {[%clk 0:02:57]}  Na5 {[%clk 0:02:57]} 10. Ba2 {[%clk 0:02:54]}  b4 {[%clk 0:02:57]} 11. Ne2 {[%clk 0:02:51]}  b3 {[%clk 0:02:56]} 12. Bxb3 {[%clk 0:02:43]}  Nxb3 {[%clk 0:02:54]} 13. cxb3 {[%clk 0:02:44]}  d5 {[%clk 0:02:54]} 14. Nxe5 {[%clk 0:02:37]}  dxe4 {[%clk 0:02:51]} 15. dxe4 {[%clk 0:02:38]}  Nxe4 {[%clk 0:02:50]} 16. Ng3 {[%clk 0:02:32]}  Bd6 {[%clk 0:02:41]} 17. Nc4 {[%clk 0:02:25]}  Bc5 {[%clk 0:01:59]} 18. Be3 {[%clk 0:02:16]}  Bxe3 {[%clk 0:01:42]} 19. Nxe3 {[%clk 0:02:16]}  Qe7 {[%clk 0:01:30]} 20. Re1 {[%clk 0:01:48]}  Rfd8 {[%clk 0:01:17]} 21. Qg4 {[%clk 0:01:38]}  Nxg3 {[%clk 0:00:56]} 22. Qxg3 {[%clk 0:01:30]}  Qf6 {[%clk 0:00:43]} 23. Qxc7 {[%clk 0:01:23]}  Be4 {[%clk 0:00:38]} 24. Qc3 {[%clk 0:01:13]}  Qg6 {[%clk 0:00:35]} 25. Qe5 {[%clk 0:01:04]}  Rd2 {[%clk 0:00:30]} 26. Rad1 {[%clk 0:01:04]}  Rxb2 {[%clk 0:00:23]} 27. Qxb2 {[%clk 0:01:02]} 1-0


[Site "https://www.chess.com"]

[Event "Titled Tuesday Blitz March 28 Late 2023"]
[White "Svicevic, Rastko"]
[Black "Jorajuria Mendoza, Algol"]
[WhiteFideId "916315"]
[BlackFideId "5128897"]
[WhiteElo "2071"]
[BlackElo "2076"]
[Result "0-1"]
[Round "11"]
[TimeControl "180+2"]
[Date "2023.03.28"]
[WhiteClock "0:00:02"]
[BlackClock "0:00:51"]

1. d4 {[%clk 0:02:58]}  d5 {[%clk 0:02:59]} 2. Bg5 {[%clk 0:02:57]}  h6 {[%clk 0:02:58]} 3. Bh4 {[%clk 0:02:57]}  Nf6 {[%clk 0:02:58]} 4. Bxf6 {[%clk 0:02:56]}  exf6 {[%clk 0:02:59]} 5. e3 {[%clk 0:02:57]}  Be6 {[%clk 0:02:56]} 6. g3 {[%clk 0:02:57]}  Bd6 {[%clk 0:02:57]} 7. Bg2 {[%clk 0:02:58]}  O-O {[%clk 0:02:58]} 8. Ne2 {[%clk 0:02:59]}  c6 {[%clk 0:02:51]} 9. O-O {[%clk 0:02:58]}  Nd7 {[%clk 0:02:51]} 10. Nd2 {[%clk 0:02:34]}  Re8 {[%clk 0:02:47]} 11. Nf4 {[%clk 0:02:34]}  Bf5 {[%clk 0:02:46]} 12. c4 {[%clk 0:02:21]}  dxc4 {[%clk 0:02:47]} 13. Nxc4 {[%clk 0:02:19]}  Bxf4 {[%clk 0:02:46]} 14. gxf4 {[%clk 0:02:18]}  Be6 {[%clk 0:02:31]} 15. Rc1 {[%clk 0:02:06]}  Qe7 {[%clk 0:02:29]} 16. Qd3 {[%clk 0:01:58]}  Rad8 {[%clk 0:02:25]} 17. f5 {[%clk 0:01:38]}  Bxc4 {[%clk 0:02:24]} 18. Rxc4 {[%clk 0:01:36]}  Nb6 {[%clk 0:02:24]} 19. Rc2 {[%clk 0:01:28]}  Qb4 {[%clk 0:02:14]} 20. a3 {[%clk 0:01:10]}  Qa5 {[%clk 0:02:11]} 21. Rd1 {[%clk 0:00:48]}  Nd5 {[%clk 0:02:03]} 22. Rc5 {[%clk 0:00:41]}  Qb6 {[%clk 0:02:01]} 23. Qc2 {[%clk 0:00:35]}  Ne7 {[%clk 0:01:48]} 24. b4 {[%clk 0:00:30]}  a6 {[%clk 0:01:46]} 25. e4 {[%clk 0:00:18]}  Rd6 {[%clk 0:01:31]} 26. e5 {[%clk 0:00:17]}  fxe5 {[%clk 0:01:30]} 27. dxe5 {[%clk 0:00:18]}  Rxd1+ {[%clk 0:01:29]} 28. Qxd1 {[%clk 0:00:19]}  Nxf5 {[%clk 0:01:29]} 29. Qd7 {[%clk 0:00:17]}  Qd8 {[%clk 0:01:22]} 30. Qxf5 {[%clk 0:00:16]}  Qd1+ {[%clk 0:01:18]} 31. Bf1 {[%clk 0:00:17]}  Qa1 {[%clk 0:01:18]} 32. Qf4 {[%clk 0:00:13]}  Qxa3 {[%clk 0:01:17]} 33. Kg2 {[%clk 0:00:12]}  Re6 {[%clk 0:01:13]} 34. h3 {[%clk 0:00:09]}  Rg6+ {[%clk 0:01:10]} 35. Kh2 {[%clk 0:00:09]}  Qa1 {[%clk 0:01:10]} 36. Rc1 {[%clk 0:00:06]}  Qb2 {[%clk 0:01:08]} 37. Bc4 {[%clk 0:00:05]}  Kh8 {[%clk 0:01:00]} 38. Bxf7 {[%clk 0:00:04]}  Rg5 {[%clk 0:00:55]} 39. Bc4 {[%clk 0:00:03]}  Qxe5 {[%clk 0:00:50]} 40. Qxe5 {[%clk 0:00:03]}  Rxe5 {[%clk 0:00:51]} 41. Kg3 {[%clk 0:00:03]}  g5 {[%clk 0:00:51]} 42. Bd3 {[%clk 0:00:02]}  Kg7 {[%clk 0:00:51]} 0-1


[Site "https://www.chess.com"]

[Event "Titled Tuesday Blitz March 28 Late 2023"]
[White "Manu_ChessExcelsior"]
[Black "Muhammad, Shahzeb"]
[BlackFideId "7804806"]
[WhiteElo "2131"]
[BlackElo "2285"]
[Result "1-0"]
[Round "11"]
[TimeControl "180+2"]
[Date "2023.03.28"]
[WhiteClock "0:00:08"]
[BlackClock "0:00:37"]

1. e4 {[%clk 0:03:00]}  d5 {[%clk 0:02:54]} 2. exd5 {[%clk 0:03:00]}  Nf6 {[%clk 0:02:52]} 3. d4 {[%clk 0:02:58]}  Nxd5 {[%clk 0:02:52]} 4. c4 {[%clk 0:02:55]}  Nb6 {[%clk 0:02:53]} 5. Be3 {[%clk 0:02:53]}  e5 {[%clk 0:02:53]} 6. dxe5 {[%clk 0:02:39]}  Qxd1+ {[%clk 0:02:54]} 7. Kxd1 {[%clk 0:02:39]}  Nc6 {[%clk 0:02:54]} 8. f4 {[%clk 0:02:26]}  Be6 {[%clk 0:02:53]} 9. Nd2 {[%clk 0:02:22]}  O-O-O {[%clk 0:02:54]} 10. b3 {[%clk 0:02:17]}  Ba3 {[%clk 0:02:32]} 11. Be2 {[%clk 0:01:50]}  Rd7 {[%clk 0:02:31]} 12. Ke1 {[%clk 0:01:42]}  Nd4 {[%clk 0:02:27]} 13. Bd1 {[%clk 0:01:28]}  Nf5 {[%clk 0:02:21]} 14. Bf2 {[%clk 0:01:10]}  Rhd8 {[%clk 0:02:13]} 15. Ne4 {[%clk 0:00:56]}  Bb4+ {[%clk 0:01:57]} 16. Ke2 {[%clk 0:00:56]}  Nd4+ {[%clk 0:01:54]} 17. Kf1 {[%clk 0:00:37]}  Bf5 {[%clk 0:01:42]} 18. Bf3 {[%clk 0:00:28]}  Nxf3 {[%clk 0:01:38]} 19. gxf3 {[%clk 0:00:29]}  Rd1+ {[%clk 0:01:24]} 20. Rxd1 {[%clk 0:00:28]}  Rxd1+ {[%clk 0:01:25]} 21. Kg2 {[%clk 0:00:29]}  Ra1 {[%clk 0:01:18]} 22. a4 {[%clk 0:00:18]}  h6 {[%clk 0:01:12]} 23. Ne2 {[%clk 0:00:18]}  Bh3+ {[%clk 0:01:05]} 24. Kxh3 {[%clk 0:00:16]}  Rxh1 {[%clk 0:01:06]} 25. Nd4 {[%clk 0:00:16]}  Rd1 {[%clk 0:01:04]} 26. Nf5 {[%clk 0:00:15]}  Bf8 {[%clk 0:01:03]} 27. Kg2 {[%clk 0:00:14]}  Rd3 {[%clk 0:01:01]} 28. Nd4 {[%clk 0:00:13]}  Bc5 {[%clk 0:00:59]} 29. Nxc5 {[%clk 0:00:12]}  Rd2 {[%clk 0:00:56]} 30. Ne4 {[%clk 0:00:13]}  Rd1 {[%clk 0:00:56]} 31. Kg3 {[%clk 0:00:13]}  Nd7 {[%clk 0:00:55]} 32. Be3 {[%clk 0:00:13]}  Rd3 {[%clk 0:00:53]} 33. Kf2 {[%clk 0:00:12]}  c5 {[%clk 0:00:52]} 34. Ke2 {[%clk 0:00:11]}  Rxe3+ {[%clk 0:00:48]} 35. Kxe3 {[%clk 0:00:11]}  cxd4+ {[%clk 0:00:49]} 36. Kxd4 {[%clk 0:00:12]}  Kc7 {[%clk 0:00:49]} 37. b4 {[%clk 0:00:12]}  Kc6 {[%clk 0:00:49]} 38. a5 {[%clk 0:00:11]}  Nf8 {[%clk 0:00:49]} 39. b5+ {[%clk 0:00:11]}  Kd7 {[%clk 0:00:49]} 40. Kd5 {[%clk 0:00:12]}  b6 {[%clk 0:00:47]} 41. axb6 {[%clk 0:00:11]}  axb6 {[%clk 0:00:48]} 42. c5 {[%clk 0:00:12]}  bxc5 {[%clk 0:00:47]} 43. Nxc5+ {[%clk 0:00:13]}  Kc7 {[%clk 0:00:47]} 44. f5 {[%clk 0:00:12]}  g6 {[%clk 0:00:46]} 45. e6 {[%clk 0:00:10]}  Kd8 {[%clk 0:00:38]} 46. b6 {[%clk 0:00:09]}  gxf5 {[%clk 0:00:32]} 47. b7 {[%clk 0:00:09]}  fxe6+ {[%clk 0:00:32]} 48. Nxe6+ {[%clk 0:00:08]}  Nxe6 {[%clk 0:00:32]} 49. Kxe6 {[%clk 0:00:09]}  Kc7 {[%clk 0:00:31]} 50. Kxf5 {[%clk 0:00:09]}  Kxb7 {[%clk 0:00:31]} 51. Ke6 {[%clk 0:00:09]}  Kc7 {[%clk 0:00:31]} 52. Ke7 {[%clk 0:00:09]}  Kc6 {[%clk 0:00:30]} 53. f4 {[%clk 0:00:09]}  Kd5 {[%clk 0:00:31]} 54. f5 {[%clk 0:00:07]}  Ke5 {[%clk 0:00:32]} 55. f6 {[%clk 0:00:07]}  Kf5 {[%clk 0:00:33]} 56. f7 {[%clk 0:00:08]}  Kg5 {[%clk 0:00:34]} 57. f8=Q {[%clk 0:00:08]}  Kh5 {[%clk 0:00:34]} 58. Qf3+ {[%clk 0:00:06]}  Kh4 {[%clk 0:00:34]} 59. Qg3+ {[%clk 0:00:07]}  Kh5 {[%clk 0:00:35]} 60. Qh3+ {[%clk 0:00:07]}  Kg5 {[%clk 0:00:35]} 61. Kf7 {[%clk 0:00:08]}  h5 {[%clk 0:00:36]} 62. Kg7 {[%clk 0:00:08]}  h4 {[%clk 0:00:36]} 63. Kh7 {[%clk 0:00:09]}  Kh5 {[%clk 0:00:37]} 64. Qf5# {[%clk 0:00:08]} 1-0


[Site "https://www.chess.com"]

[Event "Titled Tuesday Blitz March 28 Late 2023"]
[White "Torres Dominguez, David"]
[Black "Vedder, Richard"]
[WhiteFideId "2220857"]
[BlackFideId "1004166"]
[WhiteElo "1999"]
[BlackElo "2168"]
[Result "0-1"]
[Round "11"]
[TimeControl "180+2"]
[Date "2023.03.28"]
[WhiteClock "0:00:01"]
[BlackClock "0:01:25"]

1. e4 {[%clk 0:02:52]}  e5 {[%clk 0:02:59]} 2. Bc4 {[%clk 0:02:51]}  Nf6 {[%clk 0:02:59]} 3. Nc3 {[%clk 0:02:51]}  Nxe4 {[%clk 0:02:58]} 4. Qh5 {[%clk 0:02:52]}  Nd6 {[%clk 0:02:57]} 5. Qxe5+ {[%clk 0:02:52]}  Qe7 {[%clk 0:02:54]} 6. Qxe7+ {[%clk 0:02:52]}  Bxe7 {[%clk 0:02:55]} 7. Be2 {[%clk 0:02:52]}  O-O {[%clk 0:02:55]} 8. Nf3 {[%clk 0:02:50]}  c6 {[%clk 0:02:54]} 9. d4 {[%clk 0:02:49]}  Ne8 {[%clk 0:02:51]} 10. d5 {[%clk 0:02:47]}  Bf6 {[%clk 0:02:51]} 11. Bd2 {[%clk 0:02:45]}  d6 {[%clk 0:02:48]} 12. O-O-O {[%clk 0:02:44]}  c5 {[%clk 0:02:48]} 13. Ne4 {[%clk 0:02:42]}  Nd7 {[%clk 0:02:45]} 14. Rhe1 {[%clk 0:02:39]}  Nb6 {[%clk 0:02:44]} 15. Nxf6+ {[%clk 0:02:25]}  Nxf6 {[%clk 0:02:45]} 16. c4 {[%clk 0:02:21]}  Bf5 {[%clk 0:02:41]} 17. Nh4 {[%clk 0:02:13]}  Bd7 {[%clk 0:02:37]} 18. b3 {[%clk 0:02:11]}  Rfe8 {[%clk 0:02:36]} 19. h3 {[%clk 0:02:03]}  Ne4 {[%clk 0:02:33]} 20. Be3 {[%clk 0:02:00]}  a5 {[%clk 0:02:27]} 21. a4 {[%clk 0:01:57]}  Re7 {[%clk 0:02:04]} 22. Bd3 {[%clk 0:01:56]}  Rae8 {[%clk 0:02:03]} 23. Bd2 {[%clk 0:01:40]}  Nxf2 {[%clk 0:01:52]} 24. Rxe7 {[%clk 0:01:22]}  Rxe7 {[%clk 0:01:53]} 25. Kc2 {[%clk 0:01:11]}  Nxd1 {[%clk 0:01:53]} 26. Kxd1 {[%clk 0:01:12]}  g6 {[%clk 0:01:51]} 27. Bg5 {[%clk 0:01:09]}  Re8 {[%clk 0:01:51]} 28. Bf4 {[%clk 0:01:05]}  Nc8 {[%clk 0:01:50]} 29. Nf3 {[%clk 0:00:58]}  f6 {[%clk 0:01:50]} 30. Kd2 {[%clk 0:00:57]}  Kg7 {[%clk 0:01:50]} 31. Bg3 {[%clk 0:00:46]}  Kf7 {[%clk 0:01:42]} 32. Be1 {[%clk 0:00:38]}  Ke7 {[%clk 0:01:41]} 33. Kd1 {[%clk 0:00:37]}  Kd8 {[%clk 0:01:41]} 34. Bxa5+ {[%clk 0:00:35]}  b6 {[%clk 0:01:40]} 35. Bc3 {[%clk 0:00:36]}  Kc7 {[%clk 0:01:40]} 36. Bxf6 {[%clk 0:00:35]}  Ne7 {[%clk 0:01:41]} 37. Bxe7 {[%clk 0:00:29]}  Rxe7 {[%clk 0:01:41]} 38. Kd2 {[%clk 0:00:29]}  Rf7 {[%clk 0:01:39]} 39. Ke3 {[%clk 0:00:27]}  Bf5 {[%clk 0:01:36]} 40. Bxf5 {[%clk 0:00:27]}  Rxf5 {[%clk 0:01:37]} 41. h4 {[%clk 0:00:25]}  h5 {[%clk 0:01:36]} 42. g3 {[%clk 0:00:20]}  Kd7 {[%clk 0:01:36]} 43. Ng1 {[%clk 0:00:11]}  Re5+ {[%clk 0:01:35]} 44. Kd2 {[%clk 0:00:11]}  Re4 {[%clk 0:01:33]} 45. Ne2 {[%clk 0:00:12]}  Ke7 {[%clk 0:01:31]} 46. Nf4 {[%clk 0:00:11]}  Kf6 {[%clk 0:01:31]} 47. Kd3 {[%clk 0:00:08]}  Re1 {[%clk 0:01:31]} 48. Kd2 {[%clk 0:00:06]}  Rb1 {[%clk 0:01:27]} 49. Kc2 {[%clk 0:00:06]}  Rg1 {[%clk 0:01:26]} 50. Ne2 {[%clk 0:00:06]}  Rg2 {[%clk 0:01:26]} 51. Kd3 {[%clk 0:00:07]}  Kf5 {[%clk 0:01:26]} 52. Ke3 {[%clk 0:00:01]}  Kg4 {[%clk 0:01:25]} 0-1


[Site "https://www.chess.com"]

[Event "Titled Tuesday Blitz March 28 Late 2023"]
[White "Buchenau, Frank"]
[Black "Fajdetic, Hrvoje"]
[WhiteFideId "4604350"]
[BlackFideId "14501945"]
[WhiteElo "2157"]
[BlackElo "2185"]
[Result "0-1"]
[Round "11"]
[TimeControl "180+2"]
[Date "2023.03.28"]
[WhiteClock "0:00:06"]
[BlackClock "0:00:08"]

1. e4 {[%clk 0:02:56]}  c5 {[%clk 0:02:58]} 2. Nf3 {[%clk 0:02:55]}  a6 {[%clk 0:02:56]} 3. g3 {[%clk 0:02:51]}  Nc6 {[%clk 0:02:53]} 4. Bg2 {[%clk 0:02:51]}  g6 {[%clk 0:02:52]} 5. O-O {[%clk 0:02:50]}  Bg7 {[%clk 0:02:50]} 6. c3 {[%clk 0:02:50]}  e5 {[%clk 0:02:49]} 7. d4 {[%clk 0:02:39]}  exd4 {[%clk 0:02:49]} 8. cxd4 {[%clk 0:02:39]}  Nxd4 {[%clk 0:02:48]} 9. Nxd4 {[%clk 0:02:38]}  Bxd4 {[%clk 0:02:47]} 10. Nc3 {[%clk 0:02:36]}  Ne7 {[%clk 0:02:43]} 11. Bh6 {[%clk 0:02:34]}  f6 {[%clk 0:02:28]} 12. Kh1 {[%clk 0:02:19]}  Qb6 {[%clk 0:02:26]} 13. Qe2 {[%clk 0:02:05]}  Kf7 {[%clk 0:02:22]} 14. Rad1 {[%clk 0:01:54]}  d6 {[%clk 0:02:14]} 15. f4 {[%clk 0:01:50]}  Bd7 {[%clk 0:01:49]} 16. e5 {[%clk 0:01:37]}  Bc6 {[%clk 0:01:19]} 17. Ne4 {[%clk 0:01:19]}  Nf5 {[%clk 0:00:54]} 18. Nxd6+ {[%clk 0:01:13]}  Nxd6 {[%clk 0:00:53]} 19. exd6 {[%clk 0:01:13]}  Bxg2+ {[%clk 0:00:42]} 20. Qxg2 {[%clk 0:01:12]}  Qxd6 {[%clk 0:00:28]} 21. Qxb7+ {[%clk 0:01:10]}  Qe7 {[%clk 0:00:28]} 22. Qxe7+ {[%clk 0:00:37]}  Kxe7 {[%clk 0:00:28]} 23. b4 {[%clk 0:00:36]}  Rhe8 {[%clk 0:00:19]} 24. f5 {[%clk 0:00:33]}  g5 {[%clk 0:00:15]} 25. h4 {[%clk 0:00:32]}  gxh4 {[%clk 0:00:13]} 26. gxh4 {[%clk 0:00:32]}  Kf7 {[%clk 0:00:13]} 27. bxc5 {[%clk 0:00:30]}  Bxc5 {[%clk 0:00:12]} 28. Rd7+ {[%clk 0:00:29]}  Re7 {[%clk 0:00:12]} 29. Rxe7+ {[%clk 0:00:28]}  Bxe7 {[%clk 0:00:13]} 30. Rb1 {[%clk 0:00:20]}  Rc8 {[%clk 0:00:11]} 31. Rb6 {[%clk 0:00:16]}  Rc5 {[%clk 0:00:11]} 32. Rxa6 {[%clk 0:00:15]}  Rxf5 {[%clk 0:00:11]} 33. Kg2 {[%clk 0:00:15]}  Rh5 {[%clk 0:00:11]} 34. Be3 {[%clk 0:00:13]}  Rxh4 {[%clk 0:00:11]} 35. Ra7 {[%clk 0:00:13]}  Re4 {[%clk 0:00:11]} 36. Kf3 {[%clk 0:00:13]}  Re6 {[%clk 0:00:11]} 37. a4 {[%clk 0:00:13]}  Kg6 {[%clk 0:00:09]} 38. a5 {[%clk 0:00:12]}  Rxe3+ {[%clk 0:00:08]} 39. Kxe3 {[%clk 0:00:06]}  Bc5+ {[%clk 0:00:08]} 0-1


[Site "https://www.chess.com"]